bitfinex/quotes_BTCUSD_20250418
["timestamp","ask_amount","ask_price","bid_price","bid_amount"]
[1744966971539,0.12049286,84491.0,84490.0,0.2367144]
[1744966975706,0.00104495,84491.0,84490.0,0.5767144]
[1744966981501,0.12049286,84491.0,84490.0,0.5767144]
[1744966989654,0.12149286,84491.0,84490.0,0.5767144]
[1744966991622,0.12249355,84491.0,84490.0,0.5767144]
[1744966994535,0.16759355,84491.0,84490.0,0.2367144]
[1744966996070,0.16759355,84491.0,84490.0,0.16542378]
[1744966996247,0.16759355,84491.0,84485.0,0.01183642]
[1744966996248,0.16759355,84491.0,84483.0,0.0118367]
[1744966996447,0.16759355,84491.0,84483.0,0.58857054]
[1744966996448,0.28182668,84486.0,84483.0,0.58857054]
[1744966996690,0.12240711,84485.0,84484.0,0.57673121]
[1744966997786,0.35913552,84485.0,84481.0,0.24857164]
[1744966997997,0.35617665,84485.0,84482.0,0.57673612]
[1744966998187,0.11944791,84485.0,84484.0,0.23673121]
[1744966998349,0.12240709,84485.0,84484.0,0.23673121]
[1744966999655,0.12240709,84485.0,84483.0,0.23673365]
[1744967000694,0.12240709,84485.0,84484.0,0.23673121]
[1744967004390,0.12240709,84485.0,84483.0,0.23673401]
[1744967005189,0.12240709,84485.0,84484.0,0.23673121]
[1744967005328,0.11944791,84485.0,84484.0,0.23673121]
[1744967009456,0.12240709,84485.0,84484.0,0.23673121]
[1744967011703,0.12340709,84485.0,84484.0,0.23673121]
[1744967012869,0.12044791,84485.0,84484.0,0.23673121]
[1744967063982,0.35717632,84485.0,84483.0,0.23673401]
[1744967064219,0.12044791,84485.0,84483.0,0.23673401]
[1744967064400,0.12340709,84485.0,84484.0,0.23673121]
[1744967064571,0.12340709,84485.0,84483.0,0.23673401]
[1744967064954,0.36013587,84485.0,84482.0,0.24857354]
[1744967065273,0.01183656,84484.0,84481.0,0.35183698]
[1744967065481,0.35618192,84483.0,84481.0,0.34]
[1744967065649,0.35618192,84483.0,84481.0,0.57673916]
[1744967065850,0.11944791,84483.0,84481.0,0.57673916]
[1744967067026,0.11944791,84483.0,84482.0,0.23673681]
[1744967069198,0.11944791,84483.0,84481.0,0.57673916]
[1744967071203,0.11944791,84483.0,84482.0,0.23673681]
[1744967071733,0.12044791,84483.0,84482.0,0.23673681]
[1744967074555,0.1214486,84483.0,84482.0,0.23673681]
[1744967081247,0.1214486,84483.0,84482.0,0.57673681]
[1744967091354,0.1204486,84483.0,84482.0,0.57673681]
[1744967093136,0.00100069,84483.0,84482.0,0.57673681]
[1744967093944,0.00100069,84483.0,84482.0,0.58412387]
[1744967108514,0.00200069,84483.0,84482.0,0.58412387]
[1744967108739,0.1214486,84483.0,84482.0,0.58412391]
[1744967110154,0.1214486,84483.0,84482.0,0.57673681]
[1744967111962,0.1214486,84483.0,84482.0,0.58412456]
[1744967113022,0.1214486,84483.0,84482.0,0.57673681]
[1744967115681,0.1214486,84483.0,84482.0,0.34]
[1744967115983,0.1214486,84483.0,84482.0,0.57673681]
[1744967128109,0.1214486,84483.0,84482.0,0.33844592]
[1744967129408,0.1214486,84483.0,84482.0,0.23673681]
[1744967130383,0.1214486,84483.0,84482.0,0.58412435]
[1744967137032,0.1214486,84483.0,84482.0,0.57673681]
[1744967138742,0.1224486,84483.0,84482.0,0.57673681]
[1744967141605,0.1224486,84483.0,84482.0,0.58412442]
[1744967151393,0.1214486,84483.0,84482.0,0.58412442]
[1744967161206,0.12994194,84483.0,84482.0,0.58412442]
[1744967164039,0.1214486,84483.0,84482.0,0.58412442]
[1744967164310,0.12993716,84483.0,84482.0,0.58412442]
[1744967168605,0.12993716,84483.0,84482.0,0.00738761]
[1744967168811,0.41327117,84483.0,84482.0,0.00738761]
[1744967169010,0.45877117,84483.0,84482.0,0.00738761]
[1744967170562,0.23674802,84478.0,84477.0,0.0004212]
[1744967170802,0.40475543,84478.0,84477.0,0.0004212]
[1744967170965,0.41025165,84478.0,84477.0,0.0004212]
[1744967174953,0.4247925,84478.0,84477.0,0.0004212]
[1744967179889,0.4702925,84478.0,84477.0,0.0004212]
[1744967191742,0.4712925,84478.0,84477.0,0.0004212]
[1744967193013,0.12890363,84478.0,84477.0,0.0004212]
[1744967193215,0.36861125,84478.0,84477.0,0.0004212]
[1744967193508,0.36565165,84478.0,84477.0,0.0004212]
[1744967196055,0.12890363,84478.0,84477.0,0.0004212]
[1744967196262,0.36565165,84478.0,84477.0,0.0004212]
[1744967217706,0.3801925,84478.0,84477.0,0.0004212]
[1744967238022,0.23677398,84469.0,84466.0,0.15341039]
[1744967238224,0.11944791,84468.0,84466.0,0.15341039]
[1744967238387,0.12756506,84468.0,84466.0,0.15341039]
[1744967239163,0.12756506,84468.0,84461.0,0.23679461]
[1744967239353,0.13940386,84468.0,84466.0,0.02529766]
[1744967239557,0.37618204,84468.0,84464.0,0.24862156]
[1744967239954,0.23677937,84467.0,84465.0,0.01226042]
[1744967240155,0.11944791,84466.0,84465.0,0.01226042]
[1744967240363,0.12756124,84466.0,84465.0,0.01226042]
[1744967240569,0.12756124,84466.0,84465.0,0.24904488]
[1744967240943,0.12756124,84466.0,84465.0,0.27412621]
[1744967241457,0.3643429,84466.0,84465.0,0.02550253]
[1744967243319,0.12756124,84466.0,84465.0,0.26228699]
[1744967243502,0.12756124,84466.0,84465.0,0.02550253]
[1744967243503,0.3643429,84466.0,84465.0,0.02550253]
[1744967243798,0.00811333,84466.0,84465.0,0.69567304]
[1744967243978,0.00811333,84466.0,84465.0,0.69448699]
[1744967244302,0.24958595,84478.0,84475.0,0.0462]
[1744967244499,0.11944791,84477.0,84475.0,0.28295494]
[1744967244656,0.12758227,84477.0,84476.0,0.23675363]
[1744967246044,0.23675363,84476.0,84475.0,0.0462]
[1744967246278,0.35620154,84476.0,84475.0,0.0462]
[1744967246446,0.36438915,84476.0,84475.0,0.0462]
[1744967249222,0.12763552,84476.0,84473.0,0.24860001]
[1744967249342,0.11944791,84475.0,84473.0,0.24860001]
[1744967249543,0.00818378,84474.0,84473.0,0.24860001]
[1744967249796,0.12763169,84474.0,84473.0,0.24860001]
[1744967254809,0.11944791,84474.0,84473.0,0.24860001]
[1744967255010,0.12763169,84474.0,84473.0,0.24860001]
[1744967259237,0.00818378,84474.0,84473.0,0.24860001]
[1744967259642,0.00100069,84477.0,84476.0,0.23675363]
[1744967261177,0.00100069,84477.0,84472.0,0.23676439]
[1744967261178,0.01183768,84476.0,84472.0,0.23676439]
[1744967261302,0.01183768,84476.0,84473.0,0.23676129]
[1744967261303,0.36803922,84476.0,84473.0,0.23676129]
[1744967262792,0.36803922,84476.0,84474.0,0.23675851]
[1744967262934,0.13128559,84476.0,84474.0,0.23675851]
[1744967263568,0.23675643,84475.0,84473.0,0.23676129]
[1744967263984,0.36803972,84476.0,84474.0,0.23675781]
[1744967264326,0.11944791,84476.0,84474.0,0.23675781]
[1744967264521,0.11944791,84476.0,84475.0,0.23675643]
[1744967264821,0.11944791,84476.0,84474.0,0.23675781]
[1744967265654,0.35620161,84476.0,84474.0,0.23675781]
[1744967269459,0.23675662,84475.0,84471.0,0.01183838]
[1744967269751,0.36803929,84476.0,84473.0,0.23676077]
[1744967270457,0.24859429,84475.0,84472.0,0.23675933]
[1744967273323,0.24859429,84475.0,84469.0,0.34]
[1744967273324,0.13128587,84474.0,84469.0,0.34]
[1744967273526,0.0118381,84473.0,84471.0,0.23676686]
[1744967273677,0.3680535,84472.0,84469.0,0.57677279]
[1744967273872,0.13128615,84472.0,84470.0,0.23677013]
[1744967274059,0.11944791,84472.0,84469.0,0.58861145]
[1744967274259,0.00817029,84471.0,84469.0,0.58861145]
[1744967274462,0.11944791,84470.0,84469.0,0.58861145]
[1744967274777,0.12761628,84470.0,84469.0,0.58861145]
[1744967279484,0.1394548,84470.0,84468.0,0.34]
[1744967280163,0.37622525,84470.0,84468.0,0.34]
[1744967280463,0.37622525,84470.0,84468.0,0.57677568]
[1744967281010,0.37622525,84470.0,84468.0,0.34]
[1744967281670,0.37722594,84470.0,84468.0,0.34]
[1744967282167,0.37722554,84470.0,84468.0,0.34]
[1744967282662,0.1404548,84470.0,84468.0,0.57677523]
[1744967283471,0.12861628,84470.0,84469.0,0.23677325]
[1744967284258,0.12861628,84470.0,84468.0,0.57677523]
[1744967285372,0.36538689,84470.0,84468.0,0.34]
[1744967285578,0.36538689,84470.0,84468.0,0.57677503]
[1744967286000,0.12861628,84470.0,84468.0,0.57677503]
[1744967286299,0.12861628,84470.0,84469.0,0.57677325]
[1744967287002,0.12861628,84470.0,84469.0,0.34]
[1744967288402,0.36538673,84470.0,84469.0,0.34]
[1744967288556,0.12861628,84470.0,84469.0,0.34]
[1744967288930,0.12861628,84470.0,84469.0,0.57677325]
[1744967291482,0.12861628,84470.0,84469.0,0.23677325]
[1744967296347,0.12861628,84470.0,84468.0,0.23677376]
[1744967296545,0.12861628,84470.0,84469.0,0.23677325]
[1744967309157,0.12861628,84470.0,84469.0,0.24508596]
[1744967311191,0.12861628,84470.0,84469.0,0.23677325]
[1744967311577,0.12961628,84470.0,84469.0,0.23677325]
[1744967312724,0.12961628,84470.0,84469.0,0.24508573]
[1744967325371,0.12961628,84470.0,84469.0,0.00831248]
[1744967325560,0.12961628,84470.0,84469.0,0.24508573]
[1744967328786,0.12961628,84470.0,84469.0,0.00831248]
[1744967328993,0.41258673,84470.0,84469.0,0.00831248]
[1744967329203,0.42712758,84470.0,84469.0,0.00831248]
[1744967329626,0.29652251,84466.0,84465.0,0.02550253]
[1744967329797,0.41597042,84466.0,84465.0,0.02550253]
[1744967329981,0.42215443,84466.0,84465.0,0.02550253]
[1744967331310,0.42415443,84466.0,84465.0,0.02550253]
[1744967336250,0.42515512,84466.0,84465.0,0.02550253]
[1744967341555,0.42315512,84466.0,84465.0,0.02550253]
[1744967341757,0.42415512,84466.0,84465.0,0.02550253]
[1744967346669,0.42515512,84466.0,84465.0,0.0004212]
[1744967353649,0.37995512,84466.0,84465.0,0.0004212]
[1744967359108,0.12863261,84466.0,84465.0,0.23720566]
[1744967359484,0.1224486,84466.0,84465.0,0.23720566]
[1744967359978,0.12821155,84466.0,84465.0,0.23720566]
[1744967368846,0.12821155,84466.0,84465.0,0.57720566]
[1744967369006,0.00876364,84466.0,84465.0,0.62400566]
[1744967369185,0.00300069,84466.0,84465.0,0.62400566]
[1744967381585,0.00300069,84466.0,84465.0,0.57720566]
[1744967391282,0.00100069,84466.0,84465.0,0.57720566]
[1744967402075,0.1214486,84466.0,84465.0,0.57720566]
[1744967406986,0.12721582,84466.0,84465.0,0.57720566]
[1744967407231,0.1214486,84466.0,84465.0,0.57720566]
[1744967427039,0.1214486,84466.0,84465.0,0.33953375]
[1744967427641,0.1214486,84466.0,84465.0,0.57631821]
[1744967431970,0.1224486,84466.0,84465.0,0.57631821]
[1744967434304,0.13217117,84466.0,84465.0,0.57631821]
[1744967434602,0.1224486,84466.0,84465.0,0.57631821]
[1744967442738,0.13217117,84466.0,84465.0,0.57631821]
[1744967442932,0.1224486,84466.0,84465.0,0.57631821]
[1744967443157,0.13217117,84466.0,84465.0,0.57631821]
[1744967443497,0.1224486,84466.0,84465.0,0.57631821]
[1744967446227,0.1224486,84466.0,84465.0,0.23678446]
[1744967447924,0.13216971,84466.0,84465.0,0.23678446]
[1744967450662,0.1224486,84466.0,84465.0,0.23678446]
[1744967451264,0.1204486,84466.0,84465.0,0.23678446]
[1744967451571,0.1214486,84466.0,84465.0,0.23678446]
[1744967451956,0.13116971,84466.0,84465.0,0.23678446]
[1744967453174,0.13116971,84466.0,84465.0,0.57678446]
[1744967456218,0.36795137,84466.0,84465.0,0.34]
[1744967456771,0.41675137,84466.0,84465.0,0.34]
[1744967461869,0.41675137,84466.0,84462.0,0.28046501]
[1744967461870,0.23679007,84463.0,84462.0,0.03183259]
[1744967462002,0.35919789,84463.0,84462.0,0.03183259]
[1744967462210,0.37778677,84463.0,84461.0,0.34]
[1744967462415,0.35624078,84462.0,84461.0,0.34]
[1744967462729,0.3659482,84462.0,84461.0,0.34]
[1744967463134,0.3659482,84462.0,84461.0,0.34045087]
[1744967463339,0.12915533,84462.0,84461.0,0.23724655]
[1744967463519,0.3659482,84462.0,84461.0,0.00045087]
[1744967463696,0.3659482,84462.0,84461.0,0.02504762]
[1744967472014,0.12915533,84462.0,84461.0,0.36504762]
[1744967472486,0.3659482,84462.0,84461.0,0.36504762]
[1744967491687,0.3669482,84462.0,84461.0,0.36504762]
[1744967494861,0.3669482,84462.0,84461.0,0.02504762]
[1744967495459,0.4147482,84462.0,84461.0,0.02504762]
[1744967511265,0.4137482,84462.0,84461.0,0.02504762]
[1744967511443,0.4147482,84462.0,84461.0,0.02504762]
[1744967512572,0.23682307,84452.0,84450.0,0.34]
[1744967512714,0.11944791,84451.0,84450.0,0.34009073]
[1744967512913,0.12910243,84451.0,84450.0,0.34009073]
[1744967513856,0.12910243,84451.0,84450.0,0.02187433]
[1744967514384,0.36592615,84451.0,84450.0,0.02187433]
[1744967514609,0.12910243,84451.0,84450.0,0.02187433]
[1744967520666,0.12910243,84451.0,84450.0,0.25870085]
[1744967521393,0.36592615,84451.0,84450.0,0.02187433]
[1744967521560,0.12910243,84451.0,84450.0,0.02187433]
[1744967521780,0.13010243,84451.0,84450.0,0.02187433]
[1744967522013,0.13010243,84451.0,84450.0,0.25870085]
[1744967523037,0.13010243,84451.0,84450.0,0.02187433]
[1744967524132,0.13010243,84451.0,84450.0,0.59870085]
[1744967524771,0.01065452,84451.0,84450.0,0.59870085]
[1744967525039,0.001,84451.0,84450.0,0.36187433]
[1744967525240,0.01065738,84451.0,84450.0,0.36187433]
[1744967525637,0.13010529,84451.0,84450.0,0.59870085]
[1744967526923,0.13110598,84451.0,84450.0,0.59870085]
[1744967530145,0.00200069,84451.0,84450.0,0.59870085]
[1744967530343,0.00200069,84451.0,84450.0,0.60609122]
[1744967531515,0.00200069,84451.0,84450.0,0.61440217]
[1744967531869,0.01163891,84451.0,84450.0,0.61440217]
[1744967532218,0.00200069,84451.0,84450.0,0.61440217]
[1744967532529,0.00200069,84451.0,84450.0,0.60609122]
[1744967533482,0.01163891,84451.0,84450.0,0.60609122]
[1744967533683,0.00200069,84451.0,84450.0,0.60609122]
[1744967533879,0.01163891,84451.0,84450.0,0.61440187]
[1744967534175,0.00200069,84451.0,84450.0,0.61440187]
[1744967534377,0.01163891,84451.0,84450.0,0.61440187]
[1744967534579,0.00200069,84451.0,84450.0,0.61440187]
[1744967534735,0.01163891,84451.0,84450.0,0.61440187]
[1744967534940,0.00200069,84451.0,84450.0,0.61440187]
[1744967535159,0.01163891,84451.0,84450.0,0.61440187]
[1744967538414,0.00200069,84451.0,84450.0,0.61440187]
[1744967539479,0.01164395,84451.0,84450.0,0.61440187]
[1744967539679,0.00200069,84451.0,84450.0,0.61440187]
[1744967539878,0.01164395,84451.0,84450.0,0.61440187]
[1744967540124,0.00200069,84451.0,84450.0,0.61440187]
[1744967540338,0.01164395,84451.0,84450.0,0.61440187]
[1744967540561,0.00200069,84451.0,84450.0,0.61440187]
[1744967540757,0.01164395,84451.0,84450.0,0.61440187]
[1744967540956,0.00200069,84451.0,84450.0,0.61440187]
[1744967541157,0.01164395,84451.0,84450.0,0.61440187]
[1744967541302,0.36791558,84451.0,84450.0,0.37757535]
[1744967542618,0.13109186,84451.0,84450.0,0.61440187]
[1744967550280,0.1214486,84451.0,84450.0,0.61440187]
[1744967551151,0.00200069,84451.0,84450.0,0.61440187]
[1744967551764,0.00300069,84451.0,84450.0,0.61440187]
[1744967571240,0.00100069,84451.0,84450.0,0.61440187]
[1744967571561,0.00200069,84451.0,84450.0,0.61440187]
[1744967580581,0.01153165,84451.0,84450.0,0.61440187]
[1744967580784,0.00200069,84451.0,84450.0,0.60609122]
[1744967580983,0.01153165,84451.0,84450.0,0.60609122]
[1744967581152,0.00200069,84451.0,84450.0,0.60609122]
[1744967583617,0.1214486,84451.0,84450.0,0.60609122]
[1744967583965,0.13097609,84451.0,84450.0,0.60609122]
[1744967584859,0.36779981,84451.0,84450.0,0.36187433]
[1744967585264,0.41719981,84451.0,84450.0,0.36187433]
[1744967585860,0.41719981,84451.0,84450.0,0.02187433]
[1744967586033,0.41819981,84451.0,84450.0,0.02187433]
[1744967586238,0.46479981,84451.0,84450.0,0.02187433]
[1744967587619,0.47934066,84451.0,84450.0,9.073e-05]
[1744967595116,0.24870318,84438.0,84436.0,0.34]
[1744967595276,0.11944791,84437.0,84436.0,0.34004509]
[1744967595472,0.12893727,84437.0,84436.0,0.57691088]
[1744967596529,0.12893727,84437.0,84436.0,0.60451451]
[1744967598801,0.12893727,84437.0,84436.0,0.36764872]
[1744967599453,0.36580025,84437.0,84436.0,0.02764872]
[1744967599801,0.12893727,84437.0,84436.0,0.02764872]
[1744967600037,0.36580025,84437.0,84436.0,0.02764872]
[1744967601597,0.12893727,84437.0,84436.0,0.02764872]
[1744967604001,0.36580025,84437.0,84436.0,0.02764872]
[1744967608918,0.4764411,84437.0,84436.0,0.02764872]
[1744967609185,0.46190025,84437.0,84436.0,0.02764872]
[1744967610312,0.41320025,84437.0,84436.0,0.02764872]
[1744967611670,0.41420025,84437.0,84436.0,0.02764872]
[1744967614549,0.36680025,84437.0,84436.0,0.02764872]
[1744967621543,0.36780094,84437.0,84436.0,0.02764872]
[1744967628286,0.13093796,84437.0,84436.0,0.26451451]
[1744967628666,0.01149005,84437.0,84436.0,0.60451451]
[1744967628868,0.00200069,84437.0,84436.0,0.64951451]
[1744967629202,0.00200069,84437.0,84436.0,0.65790514]
[1744967629792,1e-08,84437.0,84436.0,0.70650514]
[1744967631235,1e-08,84437.0,84436.0,0.70550514]
[1744967631457,1e-08,84437.0,84436.0,0.70650514]
[1744967636147,1e-08,84437.0,84436.0,0.69911451]
[1744967636612,1e-08,84437.0,84436.0,0.83039451]
[1744967637298,1e-08,84437.0,84436.0,0.83778465]
[1744967638930,1e-08,84437.0,84436.0,0.95723256]
[1744967639068,1e-08,84437.0,84436.0,0.94984242]
[1744967640024,0.0009107,84440.0,84439.0,0.57685737]
[1744967641733,0.0009107,84440.0,84439.0,0.57785737]
[1744967642926,0.0009107,84440.0,84439.0,0.70913737]
[1744967663012,0.00820041,84440.0,84439.0,0.70913737]
[1744967663214,0.0009107,84440.0,84439.0,0.70913737]
[1744967663671,0.00820041,84440.0,84439.0,0.70913737]
[1744967663849,0.0009107,84440.0,84439.0,0.70913737]
[1744967672433,0.0009107,84440.0,84439.0,0.57785737]
[1744967682458,0.0009107,84440.0,84439.0,0.23785737]
[1744967682644,0.00818013,84440.0,84439.0,0.57785737]
[1744967691149,0.00818013,84440.0,84439.0,0.57685737]
[1744967692989,0.00818013,84440.0,84439.0,0.34]
[1744967693580,0.00818013,84440.0,84439.0,0.57685737]
[1744967696972,0.0009107,84440.0,84439.0,0.57685737]
[1744967697184,0.00815118,84440.0,84439.0,0.57685737]
[1744967697331,0.0009107,84440.0,84439.0,0.57685737]
[1744967697540,0.00815143,84440.0,84439.0,0.57685737]
[1744967698664,0.00815143,84440.0,84439.0,0.23685737]
[1744967705479,0.00815143,84440.0,84439.0,0.57685737]
[1744967706121,0.00815143,84440.0,84439.0,0.34]
[1744967706245,0.00815143,84440.0,84439.0,0.57685737]
[1744967707301,0.245006,84440.0,84439.0,0.34]
[1744967707909,0.245006,84440.0,84436.0,0.02764872]
[1744967707910,0.23686298,84437.0,84436.0,0.02764872]
[1744967708250,0.35631089,84437.0,84436.0,0.02764872]
[1744967708451,0.36354602,84437.0,84436.0,0.36764872]
[1744967709696,0.36354602,84437.0,84436.0,0.02764872]
[1744967710427,0.12668304,84437.0,84436.0,0.60451451]
[1744967710734,0.36354602,84437.0,84436.0,0.36764872]
[1744967713050,0.36354602,84437.0,84436.0,0.37504095]
[1744967714218,0.36354602,84437.0,84436.0,0.36764872]
[1744967715420,0.36354602,84437.0,84436.0,0.37504097]
[1744967716321,0.36354602,84437.0,84436.0,0.36764872]
[1744967717573,0.36354602,84437.0,84436.0,0.37504097]
[1744967718002,0.36354602,84437.0,84436.0,0.36764872]
[1744967725785,0.36354602,84437.0,84436.0,0.02764872]
[1744967726390,0.41254602,84437.0,84436.0,0.02764872]
[1744967726958,0.41254602,84437.0,84436.0,4.509e-05]
[1744967736218,0.41254602,84437.0,84436.0,0.00743793]
[1744967740806,0.41254602,84437.0,84436.0,0.01574456]
[1744967741611,0.41254602,84437.0,84436.0,0.00743793]
[1744967744617,0.41254602,84437.0,84436.0,0.0074379]
[1744967744844,0.41254602,84437.0,84436.0,0.01574524]
[1744967745654,0.36354602,84437.0,84436.0,0.01574524]
[1744967751405,0.36354602,84437.0,84436.0,0.0074379]
[1744967756234,0.36354602,84437.0,84436.0,0.01574615]
[1744967765337,0.36354602,84437.0,84436.0,0.00835334]
[1744967765506,0.36354602,84437.0,84436.0,4.509e-05]
[1744967788166,0.23689726,84425.0,84423.0,0.34]
[1744967788393,0.11944791,84424.0,84423.0,0.34]
[1744967788577,0.12657791,84424.0,84423.0,0.34104508]
[1744967788830,0.12657791,84424.0,84423.0,0.36670115]
[1744967789459,0.12657791,84424.0,84423.0,0.60360341]
[1744967789623,0.36347736,84424.0,84423.0,0.02670115]
[1744967790989,0.12657791,84424.0,84423.0,0.02670115]
[1744967791505,0.36347736,84424.0,84423.0,0.02670115]
[1744967791636,0.12657791,84424.0,84423.0,0.02670115]
[1744967791839,0.12953917,84424.0,84423.0,0.02670115]
[1744967792069,0.12657791,84424.0,84423.0,0.02670115]
[1744967792422,0.12657791,84424.0,84423.0,0.03568525]
[1744967795166,0.36347736,84424.0,84423.0,0.03568525]
[1744967795371,0.12657791,84424.0,84423.0,0.03568525]
[1744967797429,0.12657791,84424.0,84423.0,0.27258751]
[1744967798697,0.36347736,84424.0,84423.0,0.03568525]
[1744967798924,0.36347736,84424.0,84423.0,0.02670115]
[1744967799372,0.23691748,84418.0,84416.0,0.26027783]
[1744967799598,0.35636701,84417.0,84415.0,0.2491919]
[1744967799821,0.36346112,84417.0,84415.0,0.2491919]
[1744967800017,0.12654202,84417.0,84415.0,0.02660541]
[1744967800236,0.12654202,84417.0,84416.0,0.23692191]
[1744967801522,0.12654202,84417.0,84416.0,0.58574233]
[1744967804302,0.12654202,84417.0,84416.0,0.34882042]
[1744967804603,0.12654202,84417.0,84416.0,0.58574233]
[1744967805222,0.11944791,84417.0,84416.0,0.58574233]
[1744967805432,0.12652929,84417.0,84416.0,0.58574233]
[1744967806396,0.00104493,84424.0,84423.0,0.23690226]
[1744967822604,0.00104493,84424.0,84423.0,0.23723986]
[1744967827534,0.12049284,84424.0,84423.0,0.0003376]
[1744967827757,0.12345418,84424.0,84423.0,0.23723986]
[1744967827985,0.12758898,84424.0,84423.0,0.23723986]
[1744967830061,0.13055029,84424.0,84423.0,0.23723986]
[1744967830249,0.12758898,84424.0,84423.0,0.23723986]
[1744967830463,0.13055029,84424.0,84423.0,0.23723986]
[1744967832643,0.13055029,84424.0,84423.0,0.0003376]
[1744967834412,0.12758898,84424.0,84423.0,0.23723986]
[1744967843919,0.12049284,84424.0,84423.0,0.23723986]
[1744967844135,0.12756244,84424.0,84423.0,0.23723986]
[1744967851629,0.12856244,84424.0,84423.0,0.23723986]
[1744967853076,0.12149284,84424.0,84423.0,0.23723986]
[1744967854460,0.00204493,84424.0,84423.0,0.57723986]
[1744967854947,0.00204493,84424.0,84423.0,0.62503986]
[1744967855151,0.00204493,84424.0,84423.0,0.67523986]
[1744967855353,0.01480116,84455.0,84453.0,0.23681627]
[1744967855561,0.11944791,84454.0,84453.0,0.23681627]
[1744967855766,0.1265843,84454.0,84453.0,0.23681627]
[1744967855975,0.0118409,84453.0,84451.0,0.23682349]
[1744967856184,0.11944791,84452.0,84451.0,0.23682349]
[1744967856592,0.12658057,84452.0,84451.0,0.23682349]
[1744967857311,0.12658057,84452.0,84451.0,0.26032588]
[1744967858122,0.00713266,84452.0,84451.0,0.26032588]
[1744967858344,0.00713266,84452.0,84451.0,0.26911768]
[1744967858523,4.51e-05,84455.0,84454.0,0.2368153]
[1744967858715,0.11949301,84455.0,84454.0,0.2368153]
[1744967858923,4.51e-05,84455.0,84454.0,0.2368153]
[1744967870467,4.51e-05,84455.0,84454.0,0.24420533]
[1744967872064,4.51e-05,84455.0,84454.0,0.2368153]
[1744967872487,4.51e-05,84455.0,84454.0,0.24420513]
[1744967872909,4.51e-05,84455.0,84454.0,0.2368153]
[1744967875694,4.51e-05,84455.0,84454.0,0.24420517]
[1744967875918,4.51e-05,84455.0,84454.0,0.58420517]
[1744967876324,4.51e-05,84455.0,84454.0,0.58520517]
[1744967876526,4.51e-05,84455.0,84454.0,0.63050517]
[1744967878162,4.51e-05,84455.0,84454.0,0.6387763]
[1744967878529,4.51e-05,84455.0,84454.0,0.69560532]
[1744967881245,0.0008422,84473.0,84470.0,0.23677045]
[1744967881507,0.00088748,84471.0,84470.0,0.57795502]
[1744967881698,0.00088748,84471.0,84470.0,0.58604158]
[1744967881903,0.00088748,84471.0,84470.0,0.5970706]
[1744967882415,0.00088748,84471.0,84470.0,0.60446047]
[1744967883030,0.00088748,84471.0,84470.0,0.59618934]
[1744967883230,0.00088748,84471.0,84470.0,0.58879947]
[1744967883440,0.00088748,84471.0,84470.0,0.57777045]
[1744967883667,0.00088748,84471.0,84470.0,0.60447667]
[1744967885118,0.00088748,84471.0,84470.0,0.02770622]
[1744967885345,0.00088748,84471.0,84470.0,0.02889081]
[1744967886068,0.00088748,84471.0,84470.0,0.26566126]
[1744967886176,0.00088748,84471.0,84470.0,0.26447667]
[1744967889614,0.0008424,84474.0,84473.0,0.57676204]
[1744967890072,0.0008424,84485.0,84484.0,0.57673121]
[1744967890328,0.0012933,84485.0,84484.0,0.57673121]
[1744967893417,0.0012933,84485.0,84484.0,0.5854638]
[1744967895517,0.0012933,84485.0,84484.0,0.60388093]
[1744967895722,0.0012933,84485.0,84484.0,0.61215419]
[1744967896543,0.0008424,84489.0,84488.0,0.23672]
[1744967896788,0.0008424,84489.0,84488.0,0.24528977]
[1744967896911,0.0008424,84489.0,84488.0,0.24410612]
[1744967897107,0.0008424,84489.0,84488.0,0.25237938]
[1744967897322,0.0008424,84489.0,84488.0,0.38289938]
[1744967898211,0.0008424,84489.0,84488.0,0.39393039]
[1744967901416,0.0008424,84489.0,84488.0,0.26341039]
[1744967904744,0.0018424,84489.0,84488.0,0.02669039]
[1744967904959,0.12129031,84489.0,84488.0,0.02669039]
[1744967905166,0.12724332,84489.0,84488.0,0.02669039]
[1744967905399,0.12724332,84489.0,84488.0,0.36669039]
[1744967905840,0.12724332,84489.0,84488.0,0.35930427]
[1744967907741,0.12724332,84489.0,84488.0,0.34827326]
[1744967910035,0.12724332,84489.0,84488.0,0.58499326]
[1744967912756,0.12724332,84489.0,84488.0,0.57672]
[1744967913178,0.12724332,84489.0,84488.0,0.59605598]
[1744967913842,0.12129031,84489.0,84488.0,0.59605598]
[1744967914268,0.12721368,84489.0,84488.0,0.59605598]
[1744967915050,0.12129031,84489.0,84488.0,0.59605598]
[1744967915285,0.12129031,84489.0,84488.0,0.58500685]
[1744967920839,0.12129031,84489.0,84488.0,0.57672]
[1744967920978,0.12129031,84489.0,84488.0,0.58501192]
[1744967931215,0.12029031,84489.0,84488.0,0.58501192]
[1744967933395,0.12029031,84489.0,84488.0,0.57672]
[1744967936504,0.12029031,84489.0,84488.0,0.58502639]
[1744967938357,0.12029031,84489.0,84488.0,0.57672]
[1744967939741,0.11996667,84489.0,84488.0,0.57672]
[1744967940341,0.11996667,84489.0,84488.0,0.585027]
[1744967941386,0.11996667,84489.0,84488.0,0.59610394]
[1744967943857,0.11996667,84489.0,84488.0,0.585027]
[1744967949809,0.11996667,84489.0,84488.0,0.585364]
[1744967951896,0.11996667,84489.0,84488.0,0.577057]
[1744967953802,0.11996667,84489.0,84488.0,0.58536657]
[1744967956194,0.11996667,84489.0,84488.0,0.58536687]
[1744967957773,0.00051876,84489.0,84488.0,0.58536687]
[1744967958056,0.00051876,84489.0,84488.0,0.68316687]
[1744967958738,0.00051876,84489.0,84488.0,0.69423834]
[1744967960056,0.00051876,84489.0,84488.0,0.69423844]
[1744967960283,1e-08,84489.0,84488.0,0.69423844]
[1744967962093,1e-08,84489.0,84488.0,0.68316697]
[1744967963973,1e-08,84489.0,84488.0,0.69422305]
[1744967971140,1e-08,84489.0,84488.0,0.81872305]
[1744967971336,1e-08,84489.0,84488.0,0.69422305]
[1744967977034,1e-08,84489.0,84488.0,0.70160887]
[1744967979309,1e-08,84489.0,84488.0,0.65210887]
[1744967979798,1e-08,84489.0,84488.0,0.64472305]
[1744967980461,1e-08,84489.0,84488.0,0.59742305]
[1744967981070,1e-08,84489.0,84488.0,0.58636697]
[1744967982294,1e-08,84489.0,84488.0,0.58636698]
[1744967983935,1e-08,84489.0,84488.0,0.57805741]
[1744967987608,1e-08,84489.0,84488.0,0.58635866]
[1744967991245,1e-08,84489.0,84488.0,0.58535866]
[1744967996218,1e-08,84489.0,84488.0,0.59642682]
[1744968001698,1e-08,84489.0,84488.0,0.60381293]
[1744968003261,0.0008422,84499.0,84498.0,0.57669199]
[1744968003485,0.00097739,84499.0,84498.0,0.57669199]
[1744968003703,0.00097739,84499.0,84498.0,0.58499324]
[1744968004616,0.00097739,84499.0,84498.0,0.5960614]
[1744968004737,0.00097739,84499.0,84498.0,0.60344735]
[1744968007786,0.00097739,84499.0,84498.0,0.62143103]
[1744968007990,0.00097739,84499.0,84498.0,0.6214318]
[1744968013429,0.23766658,84499.0,84498.0,0.38473981]
[1744968013688,0.05017739,84499.0,84498.0,0.6214318]
[1744968013909,0.05607286,84499.0,84498.0,0.38473981]